[Event "FIDE Grand Swiss 2023"]
[Site "Villa Marina, Douglas, Isle of Man"]
[Date "2023.10.29"]
[Round "5.2"]
[White "Nakamura, Hikaru"]
[Black "Sarana, Alexey"]
[Result "1-0"]
[WhiteElo "2780"]
[BlackElo "2682"]
[EventDate "2023.10.25"]
[ECO "E00"]
[PlyCount "139"]
[BlackFideId "24133795"]
[TimeControl "40/100 + 20/50 + 15 + 30s/move"]
[WhiteFideId "2016192"]

1.d4 {[%clk 01:40:55] [%emt 00:00:04]} 1...Nf6 {[%clk 01:40:49] [%emt 00:00:12]} 
2.c4 {[%clk 01:41:10] [%emt 00:00:15]} 2...e6 {[%clk 01:41:08] [%emt 00:00:11]} 
3.Nf3 {[%clk 01:41:24] [%emt 00:00:15]} 3...d5 {[%clk 01:41:14] [%emt 00:00:25]} 
4.g3 {[%clk 01:40:50] [%emt 00:02:47]} 4...Bb4+ {[%clk 01:40:20] [%emt
00:01:23]} 5.Bd2 {[%clk 01:39:59] [%emt 00:01:21]} 5...Be7 {[%clk 01:40:21]
[%emt 00:00:29]} 6.Bg2 {[%clk 01:40:22] [%emt 00:00:06]} 6...O-O {[%clk
01:40:42] [%emt 00:00:09]} 7.O-O {[%clk 01:40:20] [%emt 00:00:31]} 7...Nbd7 
{[%clk 01:40:45] [%emt 00:00:28]} 8.Bc3 {[%clk 01:40:39] [%emt 00:00:11]} 
8...b6 {[%clk 01:22:40] [%emt 00:18:36]} 9.cxd5 {[%clk 01:40:23] [%emt
00:00:46]} 9...exd5 {[%clk 01:23:00] [%emt 00:00:10]} 10.Bd2 {[%clk 01:40:46]
[%emt 00:00:07]} 10...Bb7 {[%clk 01:17:31] [%emt 00:05:59]} 11.Nc3 {[%clk
01:41:01] [%emt 00:00:14]} 11...Ne4 {[%clk 01:17:25] [%emt 00:00:37]} 12.Bf4 
{[%clk 01:38:58] [%emt 00:02:32]} 12...Ndf6 {[%clk 01:12:10] [%emt 00:05:45]} 
13.Rc1 {[%clk 01:38:17] [%emt 00:01:12]} 13...c5 {[%clk 01:12:20] [%emt
00:00:20]} 14.Nd2 {[%clk 01:02:49] [%emt 00:35:58]} 14...Nxc3 {[%clk 01:01:27]
[%emt 00:11:24]} 15.Rxc3 {[%clk 00:59:55] [%emt 00:03:24]} 15...Qd7 {[%clk
00:54:23] [%emt 00:07:33]} 16.dxc5 {[%clk 00:46:03] [%emt 00:14:23]} 16...bxc5 
{[%clk 00:54:08] [%emt 00:00:45]} 17.Nb3 {[%clk 00:46:31] [%emt 00:00:02]} 
17...Rac8 {[%clk 00:52:25] [%emt 00:02:12]} 18.Bg5 {[%clk 00:46:24] [%emt
00:00:37]} 18...d4 {[%clk 00:41:06] [%emt 00:11:49]} 19.Bxb7 {[%clk 00:45:53]
[%emt 00:01:01]} 19...Qxb7 {[%clk 00:41:29] [%emt 00:00:08]} 20.Rc4 {[%clk
00:46:05] [%emt 00:00:17]} 20...Nd5 {[%clk 00:39:39] [%emt 00:02:19]} 21.Bxe7 
{[%clk 00:45:32] [%emt 00:01:04]} 21...Qxe7 {[%clk 00:40:06] [%emt 00:00:03]} 
22.Qc1 {[%clk 00:40:38] [%emt 00:05:23]} 22...Nb6 {[%clk 00:22:02] [%emt
00:18:34]} 23.Rc2 {[%clk 00:35:07] [%emt 00:06:00]} 23...Rfe8 {[%clk 00:15:37]
[%emt 00:06:56]} 24.Nxc5 {[%clk 00:34:06] [%emt 00:01:31]} 24...h5 {[%clk
00:16:05] [%emt 00:00:03]} 25.Rd1 {[%clk 00:24:36] [%emt 00:10:00]} 25...Qe5 
{[%clk 00:16:18] [%emt 00:00:17]} 26.Rdd2 {[%clk 00:24:48] [%emt 00:00:17]} 
26...h4 {[%clk 00:16:22] [%emt 00:00:27]} 27.Nd3 {[%clk 00:25:00] [%emt
00:00:17]} 27...Qe6 {[%clk 00:14:15] [%emt 00:02:37]} 28.a3 {[%clk 00:23:56]
[%emt 00:01:35]} 28...Nd5 {[%clk 00:12:46] [%emt 00:01:59]} 29.Nc5 {[%clk
00:18:27] [%emt 00:05:59]} 29...Qh3 {[%clk 00:11:24] [%emt 00:01:52]} 30.Qf1 
{[%clk 00:17:48] [%emt 00:01:09]} 30...Qf5 {[%clk 00:11:53] [%emt 00:00:01]} 
31.Nd3 {[%clk 00:16:50] [%emt 00:01:28]} 31...h3 {[%clk 00:10:00] [%emt
00:02:23]} 32.Ne1 {[%clk 00:12:06] [%emt 00:05:13]} 32...Nf6 {[%clk 00:09:33]
[%emt 00:00:57]} 33.Rxc8 {[%clk 00:12:14] [%emt 00:00:23]} 33...Rxc8 {[%clk
00:10:01] [%emt 00:00:02]} 34.Nf3 {[%clk 00:12:37] [%emt 00:00:06]} 34...Ne4 
{[%clk 00:10:09] [%emt 00:00:22]} 35.Rd1 {[%clk 00:13:06]} 35...Rd8 {[%clk
00:05:23] [%emt 00:05:16]} 36.Rxd4 {[%clk 00:10:25] [%emt 00:03:11]} 36...Rxd4 
{[%clk 00:04:51] [%emt 00:01:03]} 37.Nxd4 {[%clk 00:10:53] [%emt 00:00:01]} 
37...Qc5 {[%clk 00:01:12] [%emt 00:04:09]} 38.e3 {[%clk 00:04:20] [%emt
00:07:03]} 38...Nd2 {[%clk 00:00:59] [%emt 00:00:42]} 39.Qd1 {[%clk 00:04:41]
[%emt 00:00:09]} 39...Qd5 {[%clk 00:01:25] [%emt 00:00:05]} 40.f3 {[%clk
00:05:04] [%emt 00:00:06]} 40...Qa2 {[%clk 00:01:48] [%emt 00:00:07]} 41.Kf2 
{[%clk 00:04:21] [%emt 00:01:13]} 41...Qxb2 {[%clk 00:47:24] [%emt 00:04:54]} 
42.Qc2 {[%clk 00:54:15] [%emt 00:00:36]} 42...Qxc2 {[%clk 00:47:51] [%emt
00:00:04]} 43.Nxc2 {[%clk 00:54:40] [%emt 00:00:04]} 43...f5 {[%clk 00:48:17]
[%emt 00:00:05]} 44.g4 {[%clk 00:40:45] [%emt 00:14:24]} 44...fxg4 {[%clk
00:48:45] [%emt 00:00:02]} 45.fxg4 {[%clk 00:41:10] [%emt 00:00:06]} 45...Kf7 
{[%clk 00:48:39] [%emt 00:00:35]} 46.Kg3 {[%clk 00:41:20] [%emt 00:00:18]} 
46...Kf6 {[%clk 00:45:08] [%emt 00:04:03]} 47.Kxh3 {[%clk 00:41:02] [%emt
00:00:48]} 47...Kg5 {[%clk 00:45:31] [%emt 00:00:07]} 48.a4 {[%clk 00:31:49]
[%emt 00:09:44]} 48...Ne4 {[%clk 00:36:04] [%emt 00:09:56]} 49.Nd4 {[%clk
00:25:05] [%emt 00:07:13]} 49...Nf2+ {[%clk 00:35:54] [%emt 00:00:41]} 50.Kg3 
{[%clk 00:25:04] [%emt 00:00:32]} 50...Ne4+ {[%clk 00:36:21] [%emt 00:00:02]} 
51.Kh3 {[%clk 00:25:11] [%emt 00:00:23]} 51...Nf2+ {[%clk 00:36:48] [%emt
00:00:03]} 52.Kg3 {[%clk 00:25:37] [%emt 00:00:04]} 52...Ne4+ {[%clk 00:37:15]
[%emt 00:00:03]} 53.Kf3 {[%clk 00:26:02] [%emt 00:00:05]} 53...Nd2+ {[%clk
00:37:43] [%emt 00:00:02]} 54.Ke2 {[%clk 00:26:20] [%emt 00:00:13]} 54...Ne4 
{[%clk 00:38:11] [%emt 00:00:01]} 55.a5 {[%clk 00:25:40] [%emt 00:01:11]} 
55...Kxg4 {[%clk 00:38:37] [%emt 00:00:04]} 56.Nc6 {[%clk 00:26:04] [%emt
00:00:06]} 56...a6 {[%clk 00:33:22] [%emt 00:05:45]} 57.Kd3 {[%clk 00:26:14]
[%emt 00:00:20]} 57...Nd6 {[%clk 00:32:17] [%emt 00:01:35]} 58.e4 {[%clk
00:18:59] [%emt 00:07:46]} 58...Kh3 {[%clk 00:27:48] [%emt 00:04:58]} 59.e5 
{[%clk 00:16:23] [%emt 00:03:07]} 59...Ne8 {[%clk 00:28:14] [%emt 00:00:04]} 
60.e6 {[%clk 00:09:33] [%emt 00:07:19]} 60...Kxh2 {[%clk 00:28:38] [%emt
00:00:06]} 61.Nb4 {[%clk 00:09:15] [%emt 00:00:48]} 61...g5 {[%clk 00:27:53]
[%emt 00:01:14]} 62.Nxa6 {[%clk 00:09:19] [%emt 00:00:27]} 62...g4 {[%clk
00:28:22] [%emt 00:00:01]} 63.Nb4 {[%clk 00:09:41] [%emt 00:00:08]} 63...g3 
{[%clk 00:25:58] [%emt 00:02:54]} 64.Nc2 {[%clk 00:09:53] [%emt 00:00:19]} 
64...g2 {[%clk 00:26:25] [%emt 00:00:02]} 65.Ne1 {[%clk 00:10:18] [%emt
00:00:05]} 65...g1=Q {[%clk 00:26:11] [%emt 00:00:44]} 66.Nf3+ {[%clk 00:10:44]
[%emt 00:00:04]} 66...Kg3 {[%clk 00:26:37] [%emt 00:00:03]} 67.Nxg1 {[%clk
00:11:09] [%emt 00:00:05]} 67...Kf4 {[%clk 00:27:06] [%emt 00:00:02]} 68.a6 
{[%clk 00:11:29] [%emt 00:00:10]} 68...Ke5 {[%clk 00:27:34] [%emt 00:00:02]} 
69.a7 {[%clk 00:11:54] [%emt 00:00:05]} 69...Nc7 {[%clk 00:28:01] [%emt
00:00:02]} 70.e7 {[%clk 00:12:20] [%emt 00:00:03]} 1-0

[Event "FIDE Grand Swiss 2023"]
[Site "Villa Marina, Douglas, Isle of Man"]
[Date "2023.10.29"]
[Round "5.3"]
[White "Firouzja, Alireza"]
[Black "Niemann, Hans Moke"]
[Result "1/2-1/2"]
[WhiteElo "2777"]
[BlackElo "2667"]
[EventDate "2023.10.25"]
[ECO "A07"]
[PlyCount "105"]
[BlackFideId "2093596"]
[TimeControl "40/100 + 20/50 + 15 + 30s/move"]
[WhiteFideId "12573981"]

1.Nf3 {[%clk 01:40:57] [%emt 00:00:02]} 1...d5 {[%clk 01:39:29] [%emt 00:01:31]} 
2.g3 {[%clk 01:41:18] [%emt 00:00:09]} 2...Nf6 {[%clk 01:37:01] [%emt 00:02:58]} 
3.Bg2 {[%clk 01:41:38] [%emt 00:00:10]} 3...e6 {[%clk 01:35:15] [%emt 00:02:16]} 
4.O-O {[%clk 01:41:36] [%emt 00:00:33]} 4...Be7 {[%clk 01:33:20] [%emt
00:02:25]} 5.d3 {[%clk 01:38:50] [%emt 00:03:16]} 5...O-O {[%clk 01:31:35] [%emt
00:02:13]} 6.Re1 {[%clk 01:38:51] [%emt 00:00:30]} 6...Nc6 {[%clk 01:25:50]
[%emt 00:06:15]} 7.d4 {[%clk 01:37:40] [%emt 00:01:43]} 7...a5 {[%clk 01:18:58]
[%emt 00:07:20]} 8.Nc3 {[%clk 01:29:52] [%emt 00:08:19]} 8...Ne4 {[%clk
01:14:02] [%emt 00:05:26]} 9.Nb5 {[%clk 01:27:49] [%emt 00:02:33]} 9...a4 
{[%clk 01:07:38] [%emt 00:06:54]} 10.Bf4 {[%clk 01:13:59] [%emt 00:14:20]} 
10...Bd6 {[%clk 01:07:17] [%emt 00:00:51]} 11.Ne5 {[%clk 00:46:34] [%emt
00:27:55]} 11...Nxe5 {[%clk 00:57:42] [%emt 00:10:04]} 12.dxe5 {[%clk 00:46:41]
[%emt 00:00:24]} 12...Be7 {[%clk 00:57:30] [%emt 00:00:41]} 13.c4 {[%clk
00:46:15] [%emt 00:00:57]} 13...Bd7 {[%clk 00:47:09] [%emt 00:10:51]} 14.Na3 
{[%clk 00:38:25] [%emt 00:08:21]} 14...Bc5 {[%clk 00:36:43] [%emt 00:10:55]} 
15.Rf1 {[%clk 00:33:31] [%emt 00:05:24]} 15...f6 {[%clk 00:27:00] [%emt
00:10:14]} 16.exf6 {[%clk 00:29:50] [%emt 00:04:12]} 16...Nxf2 {[%clk 00:26:50]
[%emt 00:00:39]} 17.Rxf2 {[%clk 00:29:37] [%emt 00:00:42]} 17...Bxf2+ {[%clk
00:24:28] [%emt 00:02:51]} 18.Kxf2 {[%clk 00:30:02] [%emt 00:00:06]} 18...Qxf6 
{[%clk 00:24:53] [%emt 00:00:05]} 19.Kg1 {[%clk 00:29:02] [%emt 00:01:30]} 
19...Qxb2 {[%clk 00:25:06] [%emt 00:00:18]} 20.Qc1 {[%clk 00:22:25] [%emt
00:07:07]} 20...Qxe2 {[%clk 00:24:58] [%emt 00:00:36]} 21.cxd5 {[%clk 00:17:08]
[%emt 00:05:49]} 21...exd5 {[%clk 00:10:50] [%emt 00:14:37]} 22.Bxd5+ {[%clk
00:15:44] [%emt 00:01:55]} 22...Kh8 {[%clk 00:09:29] [%emt 00:01:50]} 23.Qc3 
{[%clk 00:13:55] [%emt 00:02:19]} 23...Rae8 {[%clk 00:08:05] [%emt 00:01:53]} 
24.Bxb7 {[%clk 00:08:25] [%emt 00:06:01]} 24...c6 {[%clk 00:06:49] [%emt
00:01:46]} 25.Nc4 {[%clk 00:06:13] [%emt 00:02:42]} 25...Re4 {[%clk 00:03:13]
[%emt 00:04:06]} 26.Qd2 {[%clk 00:01:26] [%emt 00:05:18]} 26...Qxc4 {[%clk
00:01:58] [%emt 00:01:45]} 27.Qxd7 {[%clk 00:01:55]} 27...Re2 {[%clk 00:01:04]
[%emt 00:01:23]} 28.Bxc6 {[%clk 00:01:43] [%emt 00:00:43]} 28...Qc5+ {[%clk
00:01:00] [%emt 00:00:33]} 29.Kh1 {[%clk 00:02:07] [%emt 00:00:06]} 29...Qf2 
{[%clk 00:01:24] [%emt 00:00:06]} 30.Qh3 {[%clk 00:02:05] [%emt 00:00:32]} 
30...Re1+ {[%clk 00:01:22] [%emt 00:00:32]} 31.Rxe1 {[%clk 00:02:30] [%emt
00:00:06]} 31...Qxe1+ {[%clk 00:01:50] [%emt 00:00:02]} 32.Kg2 {[%clk 00:02:55]
[%emt 00:00:05]} 32...Qe2+ {[%clk 00:01:18] [%emt 00:01:01]} 33.Kg1 {[%clk
00:03:16] [%emt 00:00:09]} 33...Qd1+ {[%clk 00:00:56] [%emt 00:00:52]} 34.Qf1 
{[%clk 00:03:41] [%emt 00:00:06]} 34...Qxf1+ {[%clk 00:00:58] [%emt 00:00:28]} 
35.Kxf1 {[%clk 00:04:05] [%emt 00:00:05]} 35...g5 {[%clk 00:01:27] [%emt
00:00:01]} 36.Bxa4 {[%clk 00:04:22] [%emt 00:00:13]} 36...gxf4 {[%clk 00:01:54]
[%emt 00:00:03]} 37.Kg2 {[%clk 00:04:23] [%emt 00:00:29]} 37...Kg7 {[%clk
00:02:09] [%emt 00:00:15]} 38.Bb5 {[%clk 00:02:40] [%emt 00:02:14]} 38...Kh6 
{[%clk 00:01:30] [%emt 00:01:07]} 39.a4 {[%clk 00:02:22] [%emt 00:00:50]} 
39...fxg3 {[%clk 00:01:51] [%emt 00:00:09]} 40.hxg3 {[%clk 00:02:01] [%emt
00:00:51]} 40...Rf5 {[%clk 00:02:16] [%emt 00:00:04]} 41.Bc6 {[%clk 00:00:37]
[%emt 00:01:55]} 41...Rc5 {[%clk 00:02:20] [%emt 00:00:25]} 42.Bb5 {[%clk
00:44:00] [%emt 00:07:07]} 42...Kg5 {[%clk 00:52:42] [%emt 00:00:07]} 43.Bd3 
{[%clk 00:39:19] [%emt 00:05:12]} 43...h6 {[%clk 00:53:06] [%emt 00:00:06]} 
44.Kh3 {[%clk 00:37:11] [%emt 00:02:38]} 44...Rc3 {[%clk 00:53:18] [%emt
00:00:18]} 45.Bb5 {[%clk 00:37:13] [%emt 00:00:29]} 45...Re3 {[%clk 00:53:36]
[%emt 00:00:11]} 46.Bd7 {[%clk 00:36:30] [%emt 00:01:13]} 46...Re2 {[%clk
00:53:43] [%emt 00:00:23]} 47.Bb5 {[%clk 00:36:20] [%emt 00:00:41]} 47...Ra2 
{[%clk 00:53:54] [%emt 00:00:18]} 48.Bd7 {[%clk 00:36:19] [%emt 00:00:31]} 
48...Kf6 {[%clk 00:54:04] [%emt 00:00:20]} 49.Kg4 {[%clk 00:33:24] [%emt
00:03:26]} 49...Rd2 {[%clk 00:54:24] [%emt 00:00:09]} 50.Bb5 {[%clk 00:32:57]
[%emt 00:00:57]} 50...Rd4+ {[%clk 00:54:47] [%emt 00:00:07]} 51.Kh3 {[%clk
00:31:44] [%emt 00:01:43]} 51...Kg5 {[%clk 00:55:10] [%emt 00:00:07]} 52.Bc6 
{[%clk 00:31:27] [%emt 00:00:48]} 52...Rc4 {[%clk 00:55:11] [%emt 00:00:28]} 
53.Bb5 {[%clk 00:31:43] [%emt 00:00:15]} 1/2-1/2

[Event "FIDE Grand Swiss 2023"]
[Site "Villa Marina, Douglas, Isle of Man"]
[Date "2023.10.29"]
[Round "5.4"]
[White "Sindarov, Javokhir"]
[Black "Yu, Yangyi"]
[Result "1/2-1/2"]
[WhiteElo "2658"]
[BlackElo "2720"]
[EventDate "2023.10.25"]
[ECO "C42"]
[PlyCount "60"]
[BlackFideId "8603820"]
[TimeControl "40/100 + 20/50 + 15 + 30s/move"]
[WhiteFideId "14205483"]

1.e4 {[%clk 01:40:55] [%emt 00:00:04]} 1...e5 {[%clk 01:40:47] [%emt 00:00:13]} 
2.Nf3 {[%clk 01:41:16] [%emt 00:00:09]} 2...Nf6 {[%clk 01:41:03] [%emt
00:00:14]} 3.Nxe5 {[%clk 01:41:29] [%emt 00:00:17]} 3...d6 {[%clk 01:41:25]
[%emt 00:00:08]} 4.Nf3 {[%clk 01:41:55] [%emt 00:00:04]} 4...Nxe4 {[%clk
01:41:46] [%emt 00:00:10]} 5.d4 {[%clk 01:42:22] [%emt 00:00:03]} 5...d5 {[%clk
01:41:53] [%emt 00:00:23]} 6.Bd3 {[%clk 01:42:42] [%emt 00:00:10]} 6...Nc6 
{[%clk 01:41:39] [%emt 00:00:43]} 7.O-O {[%clk 01:43:03] [%emt 00:00:09]} 
7...Be7 {[%clk 01:42:03] [%emt 00:00:06]} 8.c4 {[%clk 01:43:18] [%emt 00:00:16]} 
8...Nb4 {[%clk 01:41:45] [%emt 00:00:47]} 9.Be2 {[%clk 01:43:43] [%emt
00:00:06]} 9...O-O {[%clk 01:42:01] [%emt 00:00:13]} 10.Nc3 {[%clk 01:44:09]
[%emt 00:00:05]} 10...Bf5 {[%clk 01:40:56] [%emt 00:01:35]} 11.a3 {[%clk
01:44:18] [%emt 00:00:22]} 11...Nxc3 {[%clk 01:41:08] [%emt 00:00:17]} 12.bxc3 
{[%clk 01:44:43] [%emt 00:00:05]} 12...Nc6 {[%clk 01:41:18] [%emt 00:00:19]} 
13.Re1 {[%clk 01:44:22] [%emt 00:00:51]} 13...Re8 {[%clk 01:41:08] [%emt
00:00:39]} 14.Bf4 {[%clk 01:44:14] [%emt 00:00:39]} 14...dxc4 {[%clk 01:40:33]
[%emt 00:01:06]} 15.Bxc4 {[%clk 01:44:35] [%emt 00:00:08]} 15...Bd6 {[%clk
01:40:18] [%emt 00:00:45]} 16.Qd2 {[%clk 01:45:00] [%emt 00:00:05]} 16...Qf6 
{[%clk 01:39:21] [%emt 00:01:28]} 17.Bg5 {[%clk 01:40:42] [%emt 00:04:48]} 
17...Qg6 {[%clk 01:39:18] [%emt 00:00:33]} 18.Nh4 {[%clk 01:41:06] [%emt
00:00:05]} 18...Qh5 {[%clk 01:39:17] [%emt 00:00:31]} 19.f3 {[%clk 01:41:31]
[%emt 00:00:06]} 19...h6 {[%clk 01:38:20] [%emt 00:01:26]} 20.Nxf5 {[%clk
01:41:56] [%emt 00:00:06]} 20...Qxg5 {[%clk 01:37:39] [%emt 00:01:10]} 21.Qxg5 
{[%clk 01:42:12] [%emt 00:00:14]} 21...Rxe1+ {[%clk 01:37:29] [%emt 00:00:41]} 
22.Rxe1 {[%clk 01:42:15] [%emt 00:00:27]} 22...hxg5 {[%clk 01:37:51] [%emt
00:00:07]} 23.a4 {[%clk 01:42:21] [%emt 00:00:25]} 23...Rd8 {[%clk 01:21:21]
[%emt 00:16:59]} 24.Nxd6 {[%clk 00:33:25] [%emt 01:09:26]} 24...cxd6 {[%clk
01:21:42] [%emt 00:00:09]} 25.Bd5 {[%clk 00:32:36] [%emt 00:01:19]} 25...Rc8 
{[%clk 01:19:48] [%emt 00:02:24]} 26.Bxc6 {[%clk 00:32:47] [%emt 00:00:20]} 
26...Rxc6 {[%clk 01:20:11] [%emt 00:00:06]} 27.Re8+ {[%clk 00:33:15] [%emt
00:00:02]} 27...Kh7 {[%clk 01:20:30] [%emt 00:00:11]} 28.Re7 {[%clk 00:33:43]
[%emt 00:00:02]} 28...Rxc3 {[%clk 01:20:30] [%emt 00:00:30]} 29.Rxb7 {[%clk
00:34:11] [%emt 00:00:02]} 29...Rc4 {[%clk 01:19:57] [%emt 00:01:02]} 30.Rxa7 
{[%clk 00:34:34] [%emt 00:00:09]} 30...Rxd4 {[%clk 01:20:21] [%emt 00:00:05]} 1/2-1/2

[Event "FIDE Grand Swiss 2023"]
[Site "Villa Marina, Douglas, Isle of Man"]
[Date "2023.10.29"]
[Round "5.5"]
[White "Keymer, Vincent"]
[Black "Predke, Alexandr"]
[Result "1/2-1/2"]
[WhiteElo "2717"]
[BlackElo "2656"]
[EventDate "2023.10.25"]
[ECO "D27"]
[PlyCount "97"]
[BlackFideId "24107581"]
[TimeControl "40/100 + 20/50 + 15 + 30s/move"]
[WhiteFideId "12940690"]

1.d4 {[%clk 01:40:57] [%emt 00:00:03]} 1...d5 {[%clk 01:39:07] [%emt 00:01:53]} 
2.c4 {[%clk 01:41:21] [%emt 00:00:07]} 2...dxc4 {[%clk 01:39:32] [%emt
00:00:05]} 3.Nf3 {[%clk 01:40:10] [%emt 00:01:40]} 3...Nf6 {[%clk 01:39:52]
[%emt 00:00:10]} 4.e3 {[%clk 01:39:36] [%emt 00:01:04]} 4...e6 {[%clk 01:40:15]
[%emt 00:00:07]} 5.Bxc4 {[%clk 01:40:01] [%emt 00:00:05]} 5...a6 {[%clk
01:40:36] [%emt 00:00:10]} 6.O-O {[%clk 01:39:11] [%emt 00:01:19]} 6...c5 
{[%clk 01:40:45] [%emt 00:00:21]} 7.Nbd2 {[%clk 01:38:19] [%emt 00:01:23]} 
7...cxd4 {[%clk 01:40:54] [%emt 00:00:20]} 8.Nxd4 {[%clk 01:38:41] [%emt
00:00:08]} 8...Bc5 {[%clk 01:41:20] [%emt 00:00:04]} 9.Bd3 {[%clk 01:29:49]
[%emt 00:09:23]} 9...O-O {[%clk 01:41:19] [%emt 00:00:30]} 10.Ne4 {[%clk
01:28:56] [%emt 00:01:23]} 10...Nbd7 {[%clk 01:41:38] [%emt 00:00:12]} 11.Qc2 
{[%clk 01:14:49] [%emt 00:14:37]} 11...Qe7 {[%clk 01:41:43] [%emt 00:00:24]} 
12.Bd2 {[%clk 01:07:36] [%emt 00:07:43]} 12...Nxe4 {[%clk 01:41:49] [%emt
00:00:25]} 13.Bxe4 {[%clk 01:08:02] [%emt 00:00:04]} 13...Nf6 {[%clk 01:42:14]
[%emt 00:00:05]} 14.Bf3 {[%clk 01:01:23] [%emt 00:07:09]} 14...e5 {[%clk
01:35:44] [%emt 00:06:59]} 15.Nb3 {[%clk 00:59:04] [%emt 00:02:49]} 15...Bd6 
{[%clk 01:13:13] [%emt 00:23:01]} 16.Bc3 {[%clk 00:58:22] [%emt 00:01:13]} 
16...Be6 {[%clk 01:04:40] [%emt 00:09:02]} 17.Rfd1 {[%clk 00:56:40] [%emt
00:02:13]} 17...Rac8 {[%clk 01:05:04] [%emt 00:00:05]} 18.Bxb7 {[%clk 00:36:04]
[%emt 00:21:07]} 18...Qxb7 {[%clk 01:04:47] [%emt 00:00:46]} 19.Rxd6 {[%clk
00:36:29] [%emt 00:00:06]} 19...Ne4 {[%clk 01:04:00] [%emt 00:01:16]} 20.Rd3 
{[%clk 00:30:16] [%emt 00:06:43]} 20...Bf5 {[%clk 00:26:48] [%emt 00:37:42]} 
21.Qd1 {[%clk 00:30:29] [%emt 00:00:17]} 21...Nf6 {[%clk 00:10:13] [%emt
00:17:05]} 22.Bxe5 {[%clk 00:28:36] [%emt 00:02:23]} 22...Bxd3 {[%clk 00:10:23]
[%emt 00:00:20]} 23.Bxf6 {[%clk 00:28:51] [%emt 00:00:16]} 23...Qe4 {[%clk
00:07:46] [%emt 00:03:06]} 24.Bc3 {[%clk 00:28:37] [%emt 00:00:44]} 24...Bc2 
{[%clk 00:07:05] [%emt 00:01:11]} 25.Qd4 {[%clk 00:27:04] [%emt 00:02:03]} 
25...Qg6 {[%clk 00:07:32] [%emt 00:00:03]} 26.Qf4 {[%clk 00:26:32] [%emt
00:01:02]} 26...Bxb3 {[%clk 00:07:13] [%emt 00:00:50]} 27.axb3 {[%clk 00:26:58]
[%emt 00:00:04]} 27...Rfd8 {[%clk 00:07:35] [%emt 00:00:07]} 28.h4 {[%clk
00:25:15] [%emt 00:02:13]} 28...h6 {[%clk 00:06:48] [%emt 00:01:17]} 29.Ra4 
{[%clk 00:23:15] [%emt 00:02:30]} 29...Rc5 {[%clk 00:04:09] [%emt 00:03:09]} 
30.Qg4 {[%clk 00:20:25] [%emt 00:03:20]} 30...Rc6 {[%clk 00:03:19] [%emt
00:01:20]} 31.Qf3 {[%clk 00:16:05] [%emt 00:04:50]} 31...Qe6 {[%clk 00:03:43]
[%emt 00:00:06]} 32.Rg4 {[%clk 00:14:55] [%emt 00:01:40]} 32...f6 {[%clk
00:03:41] [%emt 00:00:32]} 33.b4 {[%clk 00:12:20] [%emt 00:03:05]} 33...Kh7 
{[%clk 00:03:33] [%emt 00:00:38]} 34.Qe4+ {[%clk 00:10:56] [%emt 00:01:54]} 
34...Qxe4 {[%clk 00:03:41] [%emt 00:00:23]} 35.Rxe4 {[%clk 00:11:24] [%emt
00:00:01]} 35...h5 {[%clk 00:03:52] [%emt 00:00:20]} 36.Re7 {[%clk 00:11:17]
[%emt 00:00:37]} 36...Kg6 {[%clk 00:03:11] [%emt 00:01:10]} 37.g3 {[%clk
00:10:54] [%emt 00:00:53]} 37...Rcd6 {[%clk 00:02:44] [%emt 00:00:57]} 38.Rc7 
{[%clk 00:10:40] [%emt 00:00:43]} 38...R8d7 {[%clk 00:03:00] [%emt 00:00:15]} 
39.Rc4 {[%clk 00:10:57] [%emt 00:00:13]} 39...Kf7 {[%clk 00:02:33] [%emt
00:00:58]} 40.Kg2 {[%clk 00:09:55] [%emt 00:01:31]} 40...Ke6 {[%clk 00:01:50]
[%emt 00:01:13]} 41.e4 {[%clk 00:04:19] [%emt 00:06:07]} 41...Rb7 {[%clk
00:00:59] [%emt 00:01:21]} 42.Rc8 {[%clk 00:00:52] [%emt 00:03:57]} 42...Kf7 
{[%clk 00:45:57] [%emt 00:05:32]} 43.Kf3 {[%clk 00:45:54] [%emt 00:05:28]} 
43...Re6 {[%clk 00:43:16] [%emt 00:03:11]} 44.Ke3 {[%clk 00:44:20] [%emt
00:02:04]} 44...Re8 {[%clk 00:42:59] [%emt 00:00:46]} 45.Rc5 {[%clk 00:44:06]
[%emt 00:00:44]} 45...Rb5 {[%clk 00:43:25] [%emt 00:00:05]} 46.Rc4 {[%clk
00:42:44] [%emt 00:01:51]} 46...Rbb8 {[%clk 00:41:37] [%emt 00:02:17]} 47.Rc6 
{[%clk 00:40:53] [%emt 00:02:22]} 47...Re6 {[%clk 00:41:59] [%emt 00:00:08]} 
48.Rc5 {[%clk 00:41:18] [%emt 00:00:05]} 48...Rb5 {[%clk 00:42:15] [%emt
00:00:15]} 49.Rc7+ {[%clk 00:31:01] [%emt 00:10:46]} 1/2-1/2